Workbook

Sheet INTRO
B2: INCOME TAX ASSESMENT FOR FINANCIAL YEAR 2024-25
B3: HOW TO USE
C4: राजस्थान राज्य कर्मचारियों के लिए FY 2024-25 के लिए आयकर आकलन के लिए विगत वर्षों के प्राप्त arrear भुगतान के लिए us 89(1) के तहत छूट प्राप्त करने के लिए Form 10 E generate करने बाबत इस UTILITY का प्रयोग किया जा सकता है । FILE को SAVE करने के लिए अपनी सुविधा से नाम देकर SAVE AS से Excel Macro- Enable Workbook के रूप में Save करें। file को open करते समय Enable Macro करें।यह excel utility केवल मात्र राज्य कार्मिको के income tax assesment के लिए सहायतार्थ तैयार की गई है ।यद्यपि इसे तैयार करने में पूर्ण सावधानी बरती गई है फिर भी किसी भूल चूक के लिए तैयार कर्ता उत्तरदायी नहीं है । किसी भी गणना के लिए त्रुटि पाए जाने पर आयकर विभाग के नियम मान्य होंगे किसी प्रकार की तकनीकी कमी पाए जाने पर नीचे दिये गए EMAIL द्वारा अवगत कराने का श्रम करावे।(PLEASE USE LATEST VERSION OF THAT IS OFFICE 2010 AND ABOVE FOR BEST RESULT)
B5: 1. First Enable Macro whenever open file 2 Save as always in Excel Macro-Enabled Workbook (*.xlsm)
B6: 1 . us 89(1) sheet | C6: इस शीट से संबन्धित निर्देश शीट पर दिये गए है
B7: 2 . Form 10E | C7: auto generated
B8: Disclaimer: - | C8: All care has been taken to keep the information upto date and correct and is for educational purpose only. You are encouraged to consult your Accountant or Advisor before taking any decesion based on this calculator
C10: सुधार हेतु सुझाव आमंत्रित है
C16: joshihansraj72@gmail.com
B20: created on 26-10-2024
B21: updated 24-02-2025

Sheet us 89(1)
B2: CALCULATION OF RELIEF UNDER SECTION 89 (1) | Q2: 1- loZizFke vius ,fj;j dks xr foÙkh; o"kksZa ds vuqlkj foHkkftr djsaA
B3: NAME | E3: Hans Raj Joshi
B4: ADDRESS | E4: GSSS RAJPURA PIPERAN | P4: 5 | W4: Old Regime
B5: PAN | E5: XXXXX1234X | I5: CATEGORY | Q5: 2- vc lEcfU/kr foÙkh; o"kksZa ds QkWeZ 16 vFkok ITR ls dj ;ksX; vk; dks lEcfU/kr lsYl esa Hkjuk gSA | W5: New Regime
B6: FINANCIAL YEAR- 2016-17 | M6: INCOME ( Rs )
B7: Enter net taxable income for 2016-17 (as per ITR/Form-16)
B8: Enter arrears relates to 2016-17
B9: FINANCIAL YEAR- 2017-18 | M9: INCOME ( Rs )
B10: Enter net taxable income for 2017-18 (as per ITR/Form-16)
B11: Enter arrears relates to 2017-18
B12: FINANCIAL YEAR- 2018-19 | M12: INCOME ( Rs ) | Q12: 3- dj ;ksX; vk; og vk; gS ftl ij ml foÙkh; o"kZ esa fu/kkZfjr vk;dj nj ls vk;dj dh x.kuk dh tkrh gSA
B13: Enter net taxable income for 2018-19 (as per ITR/Form-16)
B14: Enter arrears relates to 2018-19
B15: FINANCIAL YEAR- 2019-20 | M15: INCOME ( Rs )
B16: Enter net taxable income for 2019-20 (as per ITR/Form-16) | Q16: 4- vc bl QkWeZ esa lEcfU/kr foÙkh; o"kZ dh dj ;ksX; vk; ,oa ml o"kZ ls lEcfU/kr ,fj;j dh jkf'k HkjsaA /;ku jgs foÙkh; o"kZ 2024&25 ds fy, Hkjh x;h dj ;ksX; vk; esa lEiw.kZ ,fj;j dh jkf'k tqMh gksA vc vxyh 'khV 'form10E' esa 'GENERATE FORM 10E' cVu nckdj QkWeZ 10E, Generate djsaA izkIr NwV dh jkf'k dks 'deduction' 'khV esa lsy Q20 esa /kkjk 89(1) ds rgr jkgr esa HkjsaA
B17: Enter arrears relates to 2019-20
B18: FINANCIAL YEAR- 2020-21 | M18: INCOME ( Rs ) | P18: Select Regime Type
B19: Enter net taxable income for 2020-21 (as per ITR/Form-16)
B20: Enter arrears relates to 2020-21
B21: FINANCIAL YEAR- 2021-22 | M21: INCOME ( Rs ) | P21: Select Regime Type
B22: Enter net taxable income for 2021-22 (as per ITR/Form-16)
B23: Enter arrears relates to 2021-22
B24: FINANCIAL YEAR- 2022-23 | M24: INCOME ( Rs ) | P24: Select Regime Type
B25: Enter net taxable income for 2022-23 (as per ITR/Form-16)
B26: Enter arrears relates to 2022-23
B27: FINANCIAL YEAR- 2023-24 | M27: INCOME ( Rs ) | P27: Select Regime Type
B28: Enter net taxable income for 2023-24 (as per ITR/Form-16) | M28: 663570
B29: Enter arrears relates to 2023-24 | M29: 58900
B30: FINANCIAL YEAR- 2024-25 | M30: INCOME ( Rs ) | P30: Select Regime Type
B31: Enter net taxable income for 2024-25 including entire arrears received (as per ITR/Form-16) | M31: 729390

Sheet Form 10E
B2: FORM NO. 10 E (See rule 21AA)
B3: Form for furnishing particulars of income undr scetion 192(2A) for year ending 31st March 2025 for claiming relief under section 89(1) by a Government servant or an employee in a company, co-operative society, local authority, university, institution, association or body.
B4: Name | E4: =PROPER(IF('us 89(1)'!E3="","",'us 89(1)'!E3)) -> Hans Raj Joshi
B5: Address | E5: =UPPER(IF('us 89(1)'!E4="","",'us 89(1)'!E4)) -> GSSS RAJPURA PIPERAN
B6: PAN | E6: =UPPER(IF('us 89(1)'!E5="","",'us 89(1)'!E5)) -> XXXXX1234X | J6: Status | L6: Indian Resident
B8: Particulars of Income referred to in rule 21A of the Income tax Rules, 1962, during the previous year relevant to assessment year 2025-26
B9: 1. (a) Salary received in arrears or in advance during 2024-25 in accordance with the provision of sub-rule (2) of rule 21A | M9: ='us 89(1)'!M8+'us 89(1)'!M11+'us 89(1)'!M14+'us 89(1)'!M17+'us 89(1)'!M20+'us 89(1)'!M23+'us 89(1)'!M26+'us 89(1)'!M29 -> 58900
B10: (b) Payment in the nature of gratuity in respect of past services, extending over a period of not less than 5 years in accordance with the provisions of sub-rule (3) of rule 21A | M10: Not applicable
B11: (c) Payment in the nature of compensation from the employer or former employer at or in connection with termination of employment after continuous service of not less than 3 years in accordance with the provisions of sub-rule (4) of rule 21A | M11: Not applicable
B12: (d) Payment in commutation of pension in accordance with the provisions of sub-rule (5) of rule 21A | M12: Not applicable
B13: 2. Detailed particulars of payments referred to above may be given in Annexure I, II, IIA, III or IV as the case may be | M13: Annexure- I
B14: Verification
B15: I do hereby declare that what is stated above is true to the best of my knowledge and belief. Verified today
B17: Date:
L18: Signature of the employee
B20: ANNEXURE - I
B21: 1. Total net taxable Income excluding Salary received in Arrears or advance | M21: =M23-M22 -> 670490
B22: 2. salary received in arrears or advance | M22: =M9 -> 58900
B23: 3. Total Income (as increased by salary received in arrears or advance) (Add item 1 and item 2) | M23: ='us 89(1)'!M31 -> 729390
B24: 4. Tax on total income (as per item 3) | M24: =Control_10E!F23 -> 23857
B25: 5. Tax on total income (as per item 1) | M25: =Control_10E!F11 -> 0
B26: 6. Tax on salary received in arrears or advance (Difference of item 4 and item 5) | M26: =M24-M25 -> 23857
B27: 7. Tax computed in accordance with Table "A" (Brought from column 7 of Table "A") | M27: =N41 -> 23369 | R27: /kkjk 89¼1½ ds ragr NwV ds fy,
B28: 8. Relief under section 89 (1) (Indicate the difference between the amounts mentioned against items 6 and 7) | M28: =IF((M26-M27)<0,0,M26-M27) -> 488
B30: TABLE "A" (See item 7 of Annexure I) | R30: Relief under secion 89(1) is
B31: Previous Year(s) | D31: Total Net Taxable income of the relevant previous year | F31: salary received in arrears or advance relating to the relevant previous year as mentioned in col. (1) | H31: Total income (as increased by salry received in arrears or advance) or the relevant previous year mentioned in col. (1) (Add col. 2 and 3) | J31: Tax on total income (as per col. 2) | L31: Tax on total income (as per col. 4) | N31: Difference in tax (Amount under col. 6 minus amount under col. 5) | R31: =IF(M28<=0,0,M28) -> 488
B32: 1 | D32: 2 | F32: 3 | H32: 4 | J32: 5 | L32: 6 | N32: 7
B33: 2016-17 | D33: ='us 89(1)'!M7 -> 0 | F33: ='us 89(1)'!M8 -> 0 | H33: =D33+F33 -> 0 | J33: =Control_10E!F3 -> 0 | L33: =Control_10E!F15 -> 0 | N33: =L33-J33 -> 0
B34: 2017-18 | D34: ='us 89(1)'!M10 -> 0 | F34: ='us 89(1)'!M11 -> 0 | H34: 0 | J34: =Control_10E!F4 -> 0 | L34: =Control_10E!F16 -> 0 | N34: 0
B35: 2018-19 | D35: ='us 89(1)'!M13 -> 0 | F35: ='us 89(1)'!M14 -> 0 | H35: 0 | J35: =Control_10E!F5 -> 0 | L35: =Control_10E!F17 -> 0 | N35: 0
B36: 2019-20 | D36: ='us 89(1)'!M16 -> 0 | F36: ='us 89(1)'!M17 -> 0 | H36: 0 | J36: =Control_10E!F6 -> 0 | L36: =Control_10E!F18 -> 0 | N36: 0
B37: 2020-21 | D37: ='us 89(1)'!M19 -> 0 | F37: ='us 89(1)'!M20 -> 0 | H37: 0 | J37: =Control_10E!F7 -> 0 | L37: =Control_10E!F19 -> 0 | N37: 0
B38: 2021-22 | D38: ='us 89(1)'!M22 -> 0 | F38: ='us 89(1)'!M23 -> 0 | H38: 0 | J38: =Control_10E!F8 -> 0 | L38: =Control_10E!F20 -> 0 | N38: 0
B39: 2022-23 | D39: ='us 89(1)'!M25 -> 0 | F39: ='us 89(1)'!M26 -> 0 | H39: 0 | J39: =Control_10E!F9 -> 0 | L39: =Control_10E!F21 -> 0 | N39: 0
B40: 2023-24 | D40: ='us 89(1)'!M28 -> 663570 | F40: ='us 89(1)'!M29 -> 58900 | H40: 722470 | J40: =Control_10E!F10 -> 0 | L40: =Control_10E!F22 -> 23369 | N40: 23369
B41: Total | N41: =N33+N34+N35+N36+N37+N38+39:39+N40 -> 23369
B48: Disclaimer: -All care has been taken to keep the information upto date and correct and is for educational purpose only. You are encouraged to consult your Accountant or Advisor before taking any decesion based on this calculator

Sheet Control_10E (hidden)
A1: Tax on income excluding arrears | G1: OLD TAX REGIME | I1: NEW TAX REGIME
A2: year | B2: amount | C2: TAX | D2: surcharge | E2: edu. cess | F2: total | G2: Tax | H2: after 87a | I2: Tax | J2: after 87a | K2: tax
A3: 2016-17 | B3: ='Form 10E'!D33 -> 0 | C3: =H3 -> 0 | E3: =ROUND((C3*0.03),0) -> 0 | F3: =C3+D3+E3 -> 0 | G3: =IF($B3>1000000, 125000+($B3-1000000)*0.3, IF($B3>500000, 25000+($B3-500000)*0.2, IF($B3>250000, ($B3-250000)*0.1, 0))) -> 0 | H3: =IF(B3<500001,G3-MIN(G3,5000),G3) -> 0
A4: 2017-18 | B4: ='Form 10E'!D34 -> 0 | C4: =H4 -> 0 | D4: =IF(B4>10000000,C4*0.15,0) -> 0 | E4: =ROUND((C4*0.03),0) -> 0 | F4: 0 | G4: =IF($B4>1000000, 112500+($B4-1000000)*0.3, IF($B4>500000, 12500+($B4-500000)*0.2, IF($B4>250000, ($B4-250000)*0.05, 0))) -> 0 | H4: =IF($B4<350001,G4-MIN(G4,2500),G4) -> 0 | M4: 1 | N4: 21-22
A5: 2018-19 | B5: ='Form 10E'!D35 -> 0 | C5: =H5 -> 0 | E5: =ROUND((C5*0.04),0) -> 0 | F5: 0 | G5: =IF($B5>1000000, 112500+($B5-1000000)*0.3, IF($B5>500000, 12500+($B5-500000)*0.2, IF($B5>250000, ($B5-250000)*0.05, 0))) -> 0 | H5: =IF($B5<350001,G5-MIN(G5,2500),G5) -> 0
A6: 2019-20 | B6: ='Form 10E'!D36 -> 0 | C6: =H6 -> 0 | E6: 0 | F6: 0 | G6: =IF($B6>1000000, 112500+($B6-1000000)*0.3, IF($B6>500000, 12500+($B6-500000)*0.2, IF($B6>250000, ($B6-250000)*0.05, 0))) -> 0 | H6: =IF(B6<500001,G6-MIN(G6,12500),G6) -> 0 | M6: control button 89(1)
A7: 2020-21 | B7: ='Form 10E'!D37 -> 0 | C7: =IF($M$7=2,K7,IF(B7<=500000,H7,G7)) -> 0 | E7: 0 | F7: 0 | G7: =ROUND(IF(B7<=250000,0,IF(B7<=500000,(B7-250000)*0.05,IF(B7<=1000000,12500+(B7-500000)*0.2,IF(B7>1000000,112500+(B7-1000000)*0.3,"0")))),0) -> 0 | H7: =IF(AND(B7<=500000,G7>=12500),G7-12500,IF(AND(B7<=500000,G7<12500),0,G7)) -> 0 | I7: =ROUND(IF(B7<=250000,0,IF(B7<=500000,(B7-250000)*0.05,IF(B7<=750000,12500+(B7-500000)*0.1,IF(B7<=1000000,37500+(B7-750000)*0.15,IF(B7<=1250000,75000+(B7-1000000)*0.2,IF(B7<=1500000,125000+(B7-1250000)*0.25,IF(B7>1500000,187500+(B7-1500000)*0.3,"0"))))))),0) -> 0 | J7: =IF(AND(B7<=500000,I7>=12500),I7-12500,IF(AND(B7<=500000,I7<12500),0,I7)) -> 0 | K7: =IF(B7<=500000,J7,I7) -> 0 | M7: 2 | N7: 20-21
A8: 2021-22 | B8: ='Form 10E'!D38 -> 0 | C8: =IF($M$8=2,K8,IF(B8<=500000,H8,G8)) -> 0 | E8: 0 | F8: 0 | G8: =ROUND(IF(B8<=250000,0,IF(B8<=500000,(B8-250000)*0.05,IF(B8<=1000000,12500+(B8-500000)*0.2,IF(B8>1000000,112500+(B8-1000000)*0.3,"0")))),0) -> 0 | H8: =IF(AND(B8<=500000,G8>=12500),G8-12500,IF(AND(B8<=500000,G8<12500),0,G8)) -> 0 | I8: =ROUND(IF(B8<=250000,0,IF(B8<=500000,(B8-250000)*0.05,IF(B8<=750000,12500+(B8-500000)*0.1,IF(B8<=1000000,37500+(B8-750000)*0.15,IF(B8<=1250000,75000+(B8-1000000)*0.2,IF(B8<=1500000,125000+(B8-1250000)*0.25,IF(B8>1500000,187500+(B8-1500000)*0.3,"0"))))))),0) -> 0 | J8: =IF(AND(B8<=500000,I8>=12500),I8-12500,IF(AND(B8<=500000,I8<12500),0,I8)) -> 0 | K8: =IF(B8<=500000,J8,I8) -> 0 | M8: 2 | N8: 21-22 | P8: Marginal Relief
A9: 2022-23 | B9: ='Form 10E'!D39 -> 0 | C9: =IF($M$9=2,K9,IF(B9<=500000,H9,G9)) -> 0 | E9: 0 | F9: 0 | G9: =ROUND(IF(B9<=250000,0,IF(B9<=500000,(B9-250000)*0.05,IF(B9<=1000000,12500+(B9-500000)*0.2,IF(B9>1000000,112500+(B9-1000000)*0.3,"0")))),0) -> 0 | H9: =IF(AND(B9<=500000,G9>=12500),G9-12500,IF(AND(B9<=500000,G9<12500),0,G9)) -> 0 | I9: =ROUND(IF(B9<=250000,0,IF(B9<=500000,(B9-250000)*0.05,IF(B9<=750000,12500+(B9-500000)*0.1,IF(B9<=1000000,37500+(B9-750000)*0.15,IF(B9<=1250000,75000+(B9-1000000)*0.2,IF(B9<=1500000,125000+(B9-1250000)*0.25,IF(B9>1500000,187500+(B9-1500000)*0.3,"0"))))))),0) -> 0 | J9: =IF(AND(B9<=500000,I9>=12500),I9-12500,IF(AND(B9<=500000,I9<12500),0,I9)) -> 0 | K9: =IF(B9<=500000,J9,I9) -> 0 | M9: 2 | N9: 22-23 | P9: income>7Lac | Q9: tax diff | R9: marginal relief
A10: 2023-24 | B10: ='Form 10E'!D40 -> 663570 | C10: =IF($M$10=2,K10,IF(B10<=500000,H10,G10)) -> 0 | E10: 0 | F10: 0 | G10: =ROUND(IF(B10<=250000,0,IF(B10<=500000,(B10-250000)*0.05,IF(B10<=1000000,12500+(B10-500000)*0.2,IF(B10>1000000,112500+(B10-1000000)*0.3,"0")))),0) -> 45214 | H10: =IF(AND(B10<=500000,G10>=12500),G10-12500,IF(AND(B10<=500000,G10<12500),0,G10)) -> 45214 | I10: =ROUND(IF(B10<=300000,0,IF(B10<=600000,(B10-300000)*0.05,IF(B10<=900000,15000+(B10-600000)*0.1,IF(B10<=1200000,45000+(B10-900000)*0.15,IF(B10<=1500000,75000+(B10-1000000)*0.2,IF(B10>1500000,150000+(B10-1500000)*0.3,"0")))))),0) -> 21357 | J10: =IF(AND(B10<=700000,I10>=25000),I10-25000,IF(AND(B10<=700000,I10<25000),0,I10))-R10 -> 0 | K10: =IF(OR(B10<=700000,P10<Q10),J10,I10) -> 0 | M10: 2 | N10: 23-24 | P10: =IF(B10>700000,B10-700000,0) -> 0 | Q10: =IF(B10>700000,ROUND(IF(B10<=300000,0,IF(B10<=600000,(B10-300000)*0.05,IF(B10<=900000,15000+(B10-600000)*0.1,IF(B10<=1200000,45000+(B10-900000)*0.15,IF(B10<=1500000,75000+(B10-1000000)*0.2,IF(B10>1500000,150000+(B10-1500000)*0.3,"0")))))),0),0) -> 0 | R10: =IF(B10>700000,IF(P10<Q10,Q10-P10,0),0) -> 0
A11: 2024-25 | B11: ='Form 10E'!$M$21 -> 670490 | C11: =IF($M$11=2,K11,IF(B11<=500000,H11,G11)) -> 0 | E11: =ROUND((C11*0.04),0) -> 0 | F11: =C11+D11+E11 -> 0 | G11: =ROUND(IF(B11<=250000,0,IF(B11<=500000,(B11-250000)*0.05,IF(B11<=1000000,12500+(B11-500000)*0.2,IF(B11>1000000,112500+(B11-1000000)*0.3,"0")))),0) -> 46598 | H11: =IF(AND(B11<=500000,G11>=12500),G11-12500,IF(AND(B11<=500000,G11<12500),0,G11)) -> 46598 | I11: =ROUND(IF(B11<=300000,0,IF(B11<=700000,(B11-300000)*0.05,IF(B11<=1000000,20000+(B11-700000)*0.1,IF(B11<=1200000,50000+(B11-1000000)*0.15,IF(B11<=1500000,80000+(B11-1200000)*0.2,IF(B11>1500000,140000+(B11-1500000)*0.3,"0")))))),0) -> 18525 | J11: =IF(AND(B11<=700000,I11>=25000),I11-25000,IF(AND(B11<=700000,I11<25000),0,I11))-R11 -> 0 | K11: =IF(OR(B11<=700000,P11<Q11),J11,I11) -> 0 | M11: 2 | N11: 24-25 | P11: =IF(B11>700000,B11-700000,0) -> 0 | Q11: =IF(B11>700000,ROUND(IF(B11<=300000,0,IF(B11<=700000,(B11-300000)*0.05,IF(B11<=1000000,20000+(B11-700000)*0.1,IF(B11<=1200000,50000+(B11-1000000)*0.15,IF(B11<=1500000,80000+(B11-1200000)*0.2,IF(B11>1500000,140000+(B11-1500000)*0.3,"0")))))),0),0) -> 0 | R11: =IF(B11>700000,IF(P11<Q11,Q11-P11,0),0) -> 0
A13: Tax on income including arrears | G13: OLD TAX REGIME | I13: NEW TAX REGIME
A14: year | B14: amount | C14: TAX | D14: surcharge | E14: edu. cess | F14: total | G14: Tax | H14: after 87a | I14: Tax | J14: after 87a | K14: tax
A15: 2016-17 | B15: ='Form 10E'!H33 -> 0 | C15: =H15 -> 0 | D15: =IF(B15>10000000,C15*0.15,0) -> 0 | E15: =ROUND((C15*0.03),0) -> 0 | F15: =C15+D15+E15 -> 0 | G15: =IF($B15>1000000, 125000+($B15-1000000)*0.3, IF($B15>500000, 25000+($B15-500000)*0.2, IF($B15>250000, ($B15-250000)*0.1, 0))) -> 0 | H15: =IF(B15<500001,G15-MIN(G15,5000),G15) -> 0
A16: 2017-18 | B16: ='Form 10E'!H34 -> 0 | C16: =H16 -> 0 | D16: =IF(B16>10000000,C16*0.15,0) -> 0 | E16: =ROUND((C16*0.03),0) -> 0 | F16: 0 | G16: =IF($B16>1000000, 112500+($B16-1000000)*0.3, IF($B16>500000, 12500+($B16-500000)*0.2, IF($B16>250000, ($B16-250000)*0.05, 0))) -> 0 | H16: =IF($B16<350001,G16-MIN(G16,2500),G16) -> 0
A17: 2018-19 | B17: ='Form 10E'!H35 -> 0 | C17: =H17 -> 0 | E17: =ROUND((C17*0.04),0) -> 0 | F17: 0 | G17: =IF($B17>1000000, 112500+($B17-1000000)*0.3, IF($B17>500000, 12500+($B17-500000)*0.2, IF($B17>250000, ($B17-250000)*0.05, 0))) -> 0 | H17: =IF($B17<350001,G17-MIN(G17,2500),G17) -> 0
A18: 2019-20 | B18: ='Form 10E'!H36 -> 0 | C18: =H18 -> 0 | E18: 0 | F18: 0 | G18: =IF($B18>1000000, 112500+($B18-1000000)*0.3, IF($B18>500000, 12500+($B18-500000)*0.2, IF($B18>250000, ($B18-250000)*0.05, 0))) -> 0 | H18: =IF(B18<500001,G18-MIN(G18,12500),G18) -> 0 | M18: control button 89(1)
A19: 2020-21 | B19: ='Form 10E'!H37 -> 0 | C19: =IF($M$7=2,K19,IF(B19<=500000,H19,G19)) -> 0 | E19: 0 | F19: 0 | G19: =ROUND(IF(B19<=250000,0,IF(B19<=500000,(B19-250000)*0.05,IF(B19<=1000000,12500+(B19-500000)*0.2,IF(B19>1000000,112500+(B19-1000000)*0.3,"0")))),0) -> 0 | H19: =IF(AND(B19<=500000,G19>=12500),G19-12500,IF(AND(B19<=500000,G19<12500),0,G19)) -> 0 | I19: =ROUND(IF(B19<=250000,0,IF(B19<=500000,(B19-250000)*0.05,IF(B19<=750000,12500+(B19-500000)*0.1,IF(B19<=1000000,37500+(B19-750000)*0.15,IF(B19<=1250000,75000+(B19-1000000)*0.2,IF(B19<=1500000,125000+(B19-1250000)*0.25,IF(B19>1500000,187500+(B19-1500000)*0.3,"0"))))))),0) -> 0 | J19: =IF(AND(B19<=500000,I19>=12500),I19-12500,IF(AND(B19<=500000,I19<12500),0,I19)) -> 0 | K19: =IF(B19<=500000,J19,I19) -> 0 | M19: =M7 -> 2 | N19: =N7 -> 20-21
A20: 2021-22 | B20: ='Form 10E'!H38 -> 0 | C20: =IF($M$8=2,K20,IF(B20<=500000,H20,G20)) -> 0 | E20: 0 | F20: 0 | G20: =ROUND(IF(B20<=250000,0,IF(B20<=500000,(B20-250000)*0.05,IF(B20<=1000000,12500+(B20-500000)*0.2,IF(B20>1000000,112500+(B20-1000000)*0.3,"0")))),0) -> 0 | H20: =IF(AND(B20<=500000,G20>=12500),G20-12500,IF(AND(B20<=500000,G20<12500),0,G20)) -> 0 | I20: =ROUND(IF(B20<=250000,0,IF(B20<=500000,(B20-250000)*0.05,IF(B20<=750000,12500+(B20-500000)*0.1,IF(B20<=1000000,37500+(B20-750000)*0.15,IF(B20<=1250000,75000+(B20-1000000)*0.2,IF(B20<=1500000,125000+(B20-1250000)*0.25,IF(B20>1500000,187500+(B20-1500000)*0.3,"0"))))))),0) -> 0 | J20: =IF(AND(B20<=500000,I20>=12500),I20-12500,IF(AND(B20<=500000,I20<12500),0,I20)) -> 0 | K20: =IF(B20<=500000,J20,I20) -> 0 | M20: =M8 -> 2 | N20: 21-22 | P20: Marginal Relief
A21: 2022-23 | B21: ='Form 10E'!H39 -> 0 | C21: =IF($M$9=2,K21,IF(B21<=500000,H21,G21)) -> 0 | E21: 0 | F21: =C21+D21+E21 -> 0 | G21: =ROUND(IF(B21<=250000,0,IF(B21<=500000,(B21-250000)*0.05,IF(B21<=1000000,12500+(B21-500000)*0.2,IF(B21>1000000,112500+(B21-1000000)*0.3,"0")))),0) -> 0 | H21: =IF(AND(B21<=500000,G21>=12500),G21-12500,IF(AND(B21<=500000,G21<12500),0,G21)) -> 0 | I21: =ROUND(IF(B21<=250000,0,IF(B21<=500000,(B21-250000)*0.05,IF(B21<=750000,12500+(B21-500000)*0.1,IF(B21<=1000000,37500+(B21-750000)*0.15,IF(B21<=1250000,75000+(B21-1000000)*0.2,IF(B21<=1500000,125000+(B21-1250000)*0.25,IF(B21>1500000,187500+(B21-1500000)*0.3,"0"))))))),0) -> 0 | J21: =IF(AND(B21<=500000,I21>=12500),I21-12500,IF(AND(B21<=500000,I21<12500),0,I21)) -> 0 | K21: =IF(B21<=500000,J21,I21) -> 0 | M21: =M9 -> 2 | N21: 22-23 | P21: income>7Lac | Q21: tax diff | R21: marginal relief
A22: 2023-24 | B22: ='Form 10E'!H40 -> 722470 | C22: =IF($M$10=2,K22,IF(B22<=500000,H22,G22)) -> 22470 | E22: 899 | F22: 23369 | G22: =ROUND(IF(B22<=250000,0,IF(B22<=500000,(B22-250000)*0.05,IF(B22<=1000000,12500+(B22-500000)*0.2,IF(B22>1000000,112500+(B22-1000000)*0.3,"0")))),0) -> 56994 | H22: =IF(AND(B22<=500000,G22>=12500),G22-12500,IF(AND(B22<=500000,G22<12500),0,G22)) -> 56994 | I22: =ROUND(IF(B22<=300000,0,IF(B22<=600000,(B22-300000)*0.05,IF(B22<=900000,15000+(B22-600000)*0.1,IF(B22<=1200000,45000+(B22-900000)*0.15,IF(B22<=1500000,75000+(B22-1000000)*0.2,IF(B22>1500000,150000+(B22-1500000)*0.3,"0")))))),0) -> 27247 | J22: =IF(AND(B22<=700000,I22>=25000),I22-25000,IF(AND(B22<=700000,I22<25000),0,I22))-R22 -> 22470 | K22: =IF(OR(B22<=700000,P22<Q22),J22,I22) -> 22470 | M22: =M10 -> 2 | N22: 23-24 | P22: =IF(B22>700000,B22-700000,0) -> 22470 | Q22: =IF(B22>700000,ROUND(IF(B22<=300000,0,IF(B22<=600000,(B22-300000)*0.05,IF(B22<=900000,15000+(B22-600000)*0.1,IF(B22<=1200000,45000+(B22-900000)*0.15,IF(B22<=1500000,75000+(B22-1000000)*0.2,IF(B22>1500000,150000+(B22-1500000)*0.3,"0")))))),0),0) -> 27247 | R22: =IF(B22>700000,IF(P22<Q22,Q22-P22,0),0) -> 4777
A23: 2024-25 | B23: ='Form 10E'!$M$23 -> 729390 | C23: =IF($M$11=2,K23,IF(B23<=500000,H23,G23)) -> 22939 | E23: 918 | F23: 23857 | G23: 58378 | H23: 58378 | I23: =ROUND(IF(B23<=300000,0,IF(B23<=700000,(B23-300000)*0.05,IF(B23<=1000000,20000+(B23-700000)*0.1,IF(B23<=1200000,50000+(B23-1000000)*0.15,IF(B23<=1500000,80000+(B23-1200000)*0.2,IF(B23>1500000,140000+(B23-1500000)*0.3,"0")))))),0) -> 22939 | J23: =IF(AND(B23<=700000,I23>=25000),I23-25000,IF(AND(B23<=700000,I23<25000),0,I23))-R23 -> 22939 | K23: =IF(OR(B23<=700000,P23<Q23),J23,I23) -> 22939 | M23: 2 | N23: 24-25 | P23: =IF(B23>700000,B23-700000,0) -> 29390 | Q23: =IF(B23>700000,ROUND(IF(B23<=300000,0,IF(B23<=700000,(B23-300000)*0.05,IF(B23<=1000000,20000+(B23-700000)*0.1,IF(B23<=1200000,50000+(B23-1000000)*0.15,IF(B23<=1500000,80000+(B23-1200000)*0.2,IF(B23>1500000,140000+(B23-1500000)*0.3,"0")))))),0),0) -> 22939 | R23: =IF(B23>700000,IF(P23<Q23,Q23-P23,0),0) -> 0
F27: 2017-17 | G27: IF($B3>1000000, 125000+($B3-1000000)*0.3, IF($B3>500000, 25000+($B3-500000)*0.2, IF($B3>250000, ($B3-250000)*0.1, 0)))
G28: IF(B3<500001,G3-MIN(G3,5000),G3)
F29: 2017-18 | G29: IF($B3>1000000, 112500+($B3-1000000)*0.3, IF($$B3>500000, 12500+($B3-500000)*0.2, IF($B3>250000, ($B3-250000)*0.05, 0)))
G30: IF($B3<350001,G3-MIN(G3,2500),G3)
F31: 2018-19 | G31: IF($B4>1000000, 112500+($B4-1000000)*0.3, IF($$B4>500000, 12500+($B4-500000)*0.2, IF($B4>250000, ($B4-250000)*0.05, 0)))
G32: IF($B4<350001,G4-MIN(G4,2500),G4)
F33: 2019-20 | G33: IF($B5>1000000, 112500+($B5-1000000)*0.3, IF($B5>500000, 12500+($B5-500000)*0.2, IF($B5>250000, ($B5-250000)*0.05, 0)))
G34: IF(B5<500001,G5-MIN(G5,12500),G5)
F36: 2023-24 | G36: ROUND(IF(B10<=300000,0,IF(B10<=600000,(B10-300000)*0.05,IF(B10<=900000,15000+(B10-600000)*0.1,IF(B10<=1200000,45000+(B10-900000)*0.15,IF(B10<=1500000,75000+(B10-1000000)*0.2,IF(B10>1500000,150000+(B10-1500000)*0.3,"0")))))),0)
F38: 2024-25 | G38: ROUND(IF(B11<=300000,0,IF(B11<=700000,(B11-300000)*0.05,IF(B11<=1000000,20000+(B11-700000)*0.1,IF(B11<=1200000,50000+(B11-1000000)*0.15,IF(B11<=1500000,80000+(B11-1200000)*0.2,IF(B11>1500000,140000+(B11-1500000)*0.3,"0")))))),0)

Sheet RULES (hidden)
A1: Brief detail of Information and RULES for(Rates,Deductions,Exemption etc.) ( Mini Ready Reckoner)
B2: Select and click any rule to know the brief detail about the taxation Rules & Informations.
A3: 1 | B3: New Tax Rates for Financial-Year 2020-21, Assessment Year 2021-2022 in Old and New Regime
A4: 2 | B4: Some Exempted Receipts / Special allowances & Perquisite which are not chargable to tax in Old regime
A5: 3 | B5: Some Exempted Income ( to be shown while Return filing)
A6: 4 | B6: T A X R U L E S & O T H E R U S E F U L I N F O R M A T I O N S
A7: I | B7: HRA exemption-u/s 10(13A)
A8: II | B8: Standard deduction u/s 16 (1a) instead of Transport allowance and Medical Reimbursement
A9: III | B9: Reimbursement of Medical bills
A10: IV | B10: u/s(5) LTA Exemption
A11: V | B11: Deduction u/s 24 and Relief u/s 80EE or 80EEA on interest on housing loan.
A12: VI | B12: u/s 80CCE & 80CCD Maximum Exemption
A13: VII | B13: Rajiv Gandhi Equity Savings Scheme
A14: VIII | B14: u/s 80D Medical Insurance
A15: IX | B15: u/s 80DD Deduction in respect of medical treatment of handicapped dependents
A16: X | B16: u/s 80DDB Deduction in respect of medical treatment for specified ailments or diseases
A17: XI | B17: u/s 80E Interest repayment on education loan
A18: XII | B18: u/s 80G Donations given for certain charities
A19: XIII | B19: u/s 80GG If Assesse is not getting HRA, but living in rented house,
A20: XIV | B20: u/s 80U If assesse have a permanent physical disability
A21: XV | B21: u/s 80TTA/80TTB Deduction on interest Income.
A22: 5 | B22: KNOW MORE about DEDUCTION under Section 80-C
A23: a | B23: Qualifying Investments u/s 80CCE
A24: b | B24: Provident Fund (PF) & Voluntary Provident Fund (VPF)
A25: c | B25: Life Insurance Premiums & Unit linked Insurance Plan (ULIP)
A26: d | B26: Public Provident Fund (PPF):
A27: e | B27: National Savings Certificate (NSC):
A28: f | B28: Home Loan Principal Repayment & Stamp Duty and Registration Charges for a home
A29: g | B29: Tuition fees for 2 children
A30: h | B30: Equity Linked Savings Scheme (ELSS)
A31: i | B31: 5-Yr bank fixed deposits (FDs) or 5-Yr post office time deposit (POTD)
A32: j | B32: Pension Funds or Pension Policies
A33: k | B33: Sukanya Samridhi Account
A34: l | B34: Infrastructure Bonds: NABARD rural bonds:
A35: m | B35: Senior Citizen Savings Scheme 2004 (SCSS)
A36: 6 | B36: Allowed Deductions & Exemptions under New Income Tax Regime
B37: TAX RATES as per Old Regime -- for Financial Year 2020-21 & Assesment Year 2021-22
B38: For Individual (MALE & FEMALE) ASSESSE
B39: Net Income Range Income Tax Rates
B40: Up to ₹ 2,50,000 NIL
B41: ₹ 2,50,001 to ₹ 5,00,000 5% on Total Income (-) ₹ 2,50,000
B42: ₹ 5,00,001 to ₹ 10,00,000 ₹12,500+20% of Total Income (-) ₹5,00,000
B43: More than ₹ 10.00,000 ₹1,12,500+30% of Total Income (-) ₹10,00,000
B44: Note- (u/s 87A- A rebate upto ₹ 12500/- for assessee with Income range upto ₹ 5,00,00 will be available in Both Old & New Regime) )
B45: For SENIOR CITIZEN ASSESSE (Above 60 Year ) attaining the age during the year
B46: Net Income Range Income Tax Rates
B47: Up to ₹3,00,000 NIL
B48: ₹3,00,001 to 5,00,000 5% of Total Income(-) ₹3,00,000
B49: ₹5,00,001 to 10,00,000 ₹10,000 +20% of Total Income (-) ₹5,00,000
B50: More than ₹10.00,000 ₹1,10,000 +30% of Total Income (-) ₹10,00,000
B51: Note- (u/s 87A- A rebate upto ₹ 10000/- for assessee with Income range upto ₹ 5,00,000)
B52: For VERY SENIOR CITIZEN ASSESSE (Above 80 Year ) attaining the age during the year
B53: Net Income Range Income Tax Rates
B54: Up to ₹5,00,000 NIL
B55: ₹5,00,001 to ₹10,00,000 20% of Total Income (-) ₹10,00,000
B56: More than ₹10,00,000 ₹1,00,000 +30% of Total Income (-) ₹10,00,000
A57: Back ↑ | B57: Note: 1. Education and Health Cess is 4% of income tax from all Assesse. (as per Finance Act 2018) . 2. Surcharge on income tax @10% for income above ₹50 Lakh & 15% for income above ₹1crore
B58: TAX RATES as per New Regime - for financial Year 2020-21 & Assesment Year 2021-22 ( The new scheme is optional in nature )
B59: For Individual (>60Yrs)., Sr. Citizen (60+Yrs.) & Very Sr. Citizen (80+Yrs.) ASSESSE
B60: Up to – 250000 – Nil
B61: ₹ 2,50,001 to ₹ 5,00,000 5% on Total Income (-) ₹2,50,000
B62: ₹ 5,00,001 to ₹ 7,50,000 ₹12,500+10% of Total Income (-) ₹5,00,000
B63: ₹ 7,50,001 to ₹ 10,00,000 ₹37,500+15% of Total Income (-) ₹7,50,000
B64: ₹ 10,00,001 to ₹ 12,50,000 ₹75,000+20% of Total Income (-) ₹10,00,000
B65: ₹ 12,50,001 to ₹ 15,00,000 ₹1,25,000+25% of Total Income (-) ₹12,50,000
B66: ₹ 15,00,001 & above ₹1,87,500+30% of Total Income (-) ₹15,00,000
A67: Back ↑ | B67: Note- (u/s 87A- A rebate upto ₹ 12500/- for assessee with Income range upto ₹ 5,00,00 will be available in Both Old & New Regime) )
B69: Some Exempted Receipts /Special allowances & Perquisite which are not chargable to tax are
B70: Exempted Receipts - 1. L.T.A (as per Rule)
A71: Back ↑ | B71: Special allowances Exempted u/s 10(14) 1. Uniform Allowance (granted to meet the expenditure incurred on purchase or maintenance of uniform to be worn during performance of Official Duty) 2. Helper Allowance ( granted to meet exependiture incurred on helper for performance of official duty) 3. Academic Allowance (granted for encouraging academic, research & training pursuits) including Newspaper, Generals etc.) 4. Children Education Allowance ( ₹100 P.M. per child / (₹300 for hostel expenditure) Max of 2 children) 5. Convayance allowance ( granted to meet the expenditure incurred on convayance, while performing official duty. . ( Expenditure incured for covering journey between office and residence is not treated as expenditure in performance of official duty. )
B72: Deduction available u/s -16 1.Standard deduction of Rs. 50000/- is granted to all salaried employee.whenever Transport allowance and Medical reimbursement are abolished 2. Entertainment allowance (for Govt Employees) Max ₹5000/- 3. Professional tax - Professional tax paid by employeer is deducted from Gross salary.
B73: Perquisite not chargable to tax
B74: Free food and beverage 1. Food and non-alcoholic beverages provided in working hours in remote area or an offshore instalation are exempted to tax 2. Tea, coffee or non-alcoholic beverages and snaks in working hours are tax free perquisites. 3. Meals (Lunch and / or dinner) in office hours is not taxable. If cost to the employeris ₹50 (or Less) per meal.
B75: Some Exempted Income are ( to be shown while Return filing)
B76: 1. Withdrawal / Maturity / Interest received from PF,PPF,Sukanya Samridhi Account, Life Insurance policy, Agriculture. (Max up to ₹5000/- )
B77: 2 Long Term Capital Gain From Shares
B78: 3. Interest on Saving Bank & Post Office A/c up to ₹ 10,000/- ( Sec-80TTE) for Individual
B79: 4. Interest on Saving Bank & Post Office A/c, FD, RD etc up to ₹ 50,000/- (Sec-80TTE) for Sr. Citizen
B80: Please Note :
B81: (i) Interest earned from all sources are to be included. All interest income (including saving Bank A/C (above ₹10,000 for Individual & ₹50,000 for Sr. Citizen )
A82: Back ↑ | B82: (II) As per clarification from IT department, all perquisites such as rent-free accommodation, company provided car, free or concessional education facilities, employee stock option plan, free club membership, company provided credit card, gift vouchers, meal coupons, hotel stay beyond 15 days, are fully taxable.
A83: Back ↑ | B83: T A X R U L E S & O T H E R U S E F U L I N F O R M A T I O N S for
A84: I | B84: House Rent Allowance exemption-10(13A) = Least amount of anyone (i) 40% of Salary (50%, if house situated in Mumbai, Calcutta, Delhi or Madras) . or (ii) Actual HRA Recived . or (iii) Rent paid minus 10% of salary * Salary= Basic + DA (if part of retirement benefit) + Turnover based Commission Note i. Fully Taxable, if HRA is received by an employee who is living in his own house or if he does not pay any rent ii. It is mandatory for employee to report PAN of the landlord to the employer if rent paid is more than ₹ 1,00,000 [Circular No. 08 /2013 dated 10th October, 2013]. (In case the landlord does not have PAN, employee should submit a declaration stating the same along with the landlord’s details.)
A85: II | B85: Standard deduction of ₹50000/- is allowed to all salaried employee. In Finace act 2019 standard deduction of Rs. 50,000/- has allowed to all salaried employees. But Transport allowance & Medical Reimburement are abolished. Whenever an exemption of up to ₹3200/- per month is cotinue for disabled employees (Blind and Handicapped employees) . Transport Allowance is granted to an employee to meet expenditure on commuting between place of residence and place of duty
A86: III | B86: Reimbursement of Medical bills has withdrawan and not allowed from finance act 2018. Now it has become a part of Standard deduction of Rs. 50,000/-
A87: IV | B87: u/s(5) LTA is exempt to the tune of economy class Train/ Air /Recognised public Transport fare for the family to any destination in India, by the shortest route. LTA can be claimed twice in a block of 4 calendar year. The current block is from 01.01.2018 to 31.12.2021. For claim, it is must to provide originals tickets etc.
A88: V(a) New Change | B88: u/s 24 and 80 EE/ 80EEA There is an Exemption for interest on housing loan.(for Self occupied Residence). If the loan was taken before Apr 1, 1999 exemption is limited to ₹30,000/- per year. If the loan was taken after Apr 1, 1999 exemption is limited to ₹2,00,000/- per year if the house is self-occupied; This exemption is available on accrual basis, which means if interest has accrued, you can claim exemption, irrespective of whether you've paid it or not. 80EE - In finance bill 2016 (an additional rebate of ₹.50.000/- was given to those assesse, who purchase self ocupied single house and loan has sanctioned between 01/04/2016 to 31/03/2018 with maximum value of ₹ 50 Lacs and sanctioned home loan up to 35 Lacs.). The deduction is allowed untill the loan is repaid. Sec 80EEA - In Finance bill 2019 ( a new rebate for purchase first house has been introduced to extend the tax benefit upto Rs. 1,50,000/- for affordable house of stamp duty valued up to Rs. 45 Lacs and loan sanctioned during the period 01/04/2019 to 31/03.2021)
A89: (b) | B89: If you have rented out your house, Whole the interest will be eligible for deduction. (after deducting property tax and standard maintenance expenses from rent recived). But maximum interest allowed for deduction is 2,00,000/- only and rest of interest will be adjust while filing of ITR as carryforward of losses.
A90: VI | B90: u/s 80CCE- Maximum Exemption up to ₹1,50,000/- Investments up to ₹1.5 lac in PF, VPF, PPF, Employee contribution in NPS,Insurance Premium, Housing loan principal repayment, NSC, ELSS, long term bank Fixed Deposit, Post Office Term Deposit, etc. are deductible from the taxable income. There is no limit on individual items, (for example) all 1.5 lac can be invested in NSC or PPF etc.
A91: VII | B91: u/s 80CCD(1): Contribution to NPS (by Employee) The Finance Act, 2015 provides that, The contribution made by the employee to the NPS will be subject to the limit of ₹1,50,000.(Sec 80CCE) Section 80CCD (2): Contribution to NPS (by Employer) - Contribution made by the Central Government or any other employer to NPS shall be excluded while computing the limit of Rs1,50,000 Deduction available for the amount paid or deposited by the employer of the assessee in a pension scheme notified or as may be notified by the Central Government subject to a maximum of 10% of salary in the financial year. Section 80CCD(1B): Additional depoisiting to New Pension Scheme (NPS) account in Banks/PO - It will provide an additional deduction of upto ₹ 50,000 over and above the limit of ₹ 1.50 lakh in respect of contributions made to NPS account.
A92: VIII | B92: u/s 80CCG - Rajiv Gandhi Equity Savings Scheme exemption has been abolished in Fianance Act 2017.
A93: IX | B93: u/s 80D Medical Insurance Premiums+ Critical Insurance cover Premiuma +Health checkup+ CGHS/ SGHS contributions (Mediclaim Insurance & Critical illness Cover from health Insurance Co. or Life Insurance Co. with contribution in CGHS/SGHS & Preventive Health Check upto INR.5000/-) for Self Family & Parents <60 Yrs. or Sr. Citizen. For Very Sr. Citizen abobe 80 Yrs. Expenses on medical treatment. Premium & Health checkup is exempt up to 1.₹. 25000/- for Self & Family less than 60Yrs. 2.₹ 50000/- for Self, Family & Parents below 60 Yrs (25000/-+25000/-) 3. ₹ 75000/ for Self, Family & Parents Sr. Citizen – (25000/-+50000/-) 4. ₹ 50000/- sr. Citizen above 60 Yrs Self & Family
A94: X | B94: u/s 80DD Deduction in respect of medical treatment of handicapped dependents is limited to ₹75,000/- per year if the disability is less than 80% and Rs1,25,000/- per year if the disability is more than 80%
A95: XI | B95: u/s 80DDB Deduction in respect of medical treatment for specified ailments or diseases for the assesse or dependent can be claimed up to ₹40,000/- per year. If the person being treated is a senior citizen (Age 60+), the exemption can go up to ₹1,00,000/- but any amount received under Medical Insurance Policy will be reduced from the amount of deduction allowed. The Diseases and ailments specified under rule 11DD are. (1) Neurological diseases being demetia, dystonia musculorum deformans, motor neuron disease, ataxia, chorea, hemiballismus, aphasia and parkisons disease, (2) cancer, (3) AIDS, (4)Chronic renal failure, (5) hemophilia, and (6) thalassaemia. Note:The assessee will be required to obtain a prescription/Certificate from a specialist doctor whether from Govt or Pvt. for the purpose of availing this deduction.
A96: XII | B96: u/s 80E Interest repayment on education loan (taken for higher education from a university of self & dependents) is completely tax exempt
A97: XIII | B97: u/s 80G Donations given for certain charities are tax exempt.NGO,Trust etc. are exempt to the tune of 50%, whereas Govt funds are 100%. u/s 80GGA - Donations for scientific, social or statistical research or rural development programme or for carrying out an eligible project or scheme or National Urban Poverty Eradication Fund u/s 80GGC -Donation to any political party/electoral trust
A98: XIV New | B98: u/s 80GG If you are not getting HRA, but living in rented house, an exemption is available. This will be calculated as minimum of (25% of total income or rent paid - 10% of total income or ₹ 60,000/- per year)
A99: XV | B99: u/s 80U who suffers from not less than 40 per cent of any disability is eligible for deduction to the extent of ₹ 75,000/- and in case of severe disability to the extent of ₹ 1,25,000/-
A100: XVI | B100: u/s 80TTA/80TTB introduced through Finance Act, 2012. Section 80TTA provides a deduction of up to ₹10,000 on income from interest on saving bank accounts to Individual asessee and Sec 80TTB introduced through Finance Act, 2018. Which provides a deduction of up to ₹50,000 on income from interest Income from bank & Post Offices ( Savings,FD, RD, MIS,SCSS etc. ) to Sr. Citizen asessee
A101: Back ↑ | B101: KNOW MORE about DEDUCTION under Section 80-C and chapter VIA
B102: Section 80C of the Income Tax Act allows certain investments and expenditure to be deduct from total income - One must plan investments well and spread it out across the various instruments specified under this section to avail maximum tax benefit. There are no sub-limits and is irrespective of how much you earn and under which tax bracket you fall. Most of the Income Tax payee try to save tax by saving under Section 80C of the Income Tax Act. However, it is important to know the Section in total. so that one can make best use of the options available for deduction under income tax Act. One important point to note that one can not only save tax by undertaking the specified investments, but some expenditure which you normally incur can also give you the tax exemptions.
A103: Back ↑ | B103: Qualifying Investments u/s 80CCE are
A104: a | B104: Provident Fund (PF) & Voluntary Provident Fund (VPF) PF is automatically deducted from your salary. your contribution [12% of Basic] (i.e., employee’s contribution) is counted towards section 80C investments. You also have the option to contribute additional amounts through voluntary contributions (VPF). Current rate of interest is 8.5% per annum (p.a.) and is tax-free.
A105: b | B105: Life Insurance Premiums: Any amount that you pay towards life insurance premium in Life Insurance Corporation (LIC) or any other Insurance CO.for yourself, your spouse or your children can also be included in Section 80C deduction. If you are paying premium for more than one insurance policy, all the premiums will be included. also premium paid for ULIP will also be treated as Premium paid for Life Insurance Policies. Unit linked Insurance Plan : ULIP stands for Unit linked Saving Schemes. ULIPs cover Life insurance with benefits of equity investments.They have attracted the attention of investors and tax-savers not only because they help us save tax but they also perform well to give decent returns in the long-term. IMP : Total Amount Received at Maturity, Survival Benefits, , Withdrawl in Insurance Policies is Tax Free and fully exempteed u/s 10(10D).
A106: c | B106: Public Provident Fund (PPF): Among all the assured returns small saving schemes, Public Provident Fund (PPF) is one of the best. Current rate of interest is 8% tax-free and the normal maturity period is 15 years Minimum amount of contribution is ₹500 and maximum is ₹1,50,000.(New Change) from Finance Act 2014
A107: d | B107: National Savings Certificate (NSC): National Savings Certificate (NSC) is a 5-Yr small savings instrument eligible for section 80C tax benefit. Rate of interest is 8.58% compounded half-yearly, i.e. If you invest ₹100, it becomes ₹150.90 after five years. The interest accrued every year is liable to tax (i.e. to be included in your taxable income) but the interest is also deemed to be reinvested and thus eligible for section 80C deduction.
A108: e | B108: Home Loan Principal Repayment & Stamp Duty and Registration Charges for a home Loan The Equated Monthly Installment (EMI) that you pay every month to repay your home loan consists of two components – Principal and Interest.The principal component of the EMI qualifies for deduction under Sec 80C. Even the interest component can save you significant income tax – but that would be under Section 24 of the Income Tax Act. The amount you pay as stamp duty when you buy a house, and the amount you pay for the registration of the documents of the house can be claimed as deduction under section 80C in the year of purchase of the house.
A109: f | B109: Tuition fees for 2 children Apart form the above major investments expenses for children’s education (Only Tution Fee (for which you need receipts)), can be claimed as deductions under Sec 80C.
A110: g | B110: Equity Linked Savings Scheme (ELSS): There are some mutual fund (MF) schemes specially created for offering you tax savings, and these are called Equity Linked Savings Scheme, or ELSS. The investments that you make in ELSS are eligible for deduction under Sec 80C.
A111: h | B111: 5-Yr bank fixed deposits (FDs): Tax-saving fixed deposits (FDs) of scheduled banks with tenure of 5 years are also entitled for section 80C deduction. 5-Yr post office time deposit (POTD) scheme: POTDs are similar to bank fixed deposits. Although available for varying time duration like one year, two year, three year and five year, only 5-Yr post-office time deposit (POTD) – which currently offers 7.5 per cent rate of interest –qualifies for tax saving under section 80C. Effective rate works out to be 7.71% per annum (p.a.) as the rate of interest is compounded quarterly but paid annually. The Interest is entirely taxable.
A112: i | B112: Pension Funds or Pension Policies – Section 80CCC: This section – Sec 80CCC – stipulates that an investment in pension funds is eligible for deduction from your income. Section 80CCC investment limit is clubbed with the limit of Section 80C – it means that the total deduction available for 80CCC and 80C is ₹1.5 Lakh.This also means that your investment in pension funds upto ₹1.5 Lakh can be claimed as deduction u/s 80CCC. However, as mentioned earlier, the total deduction u/s 80C and 80CCC can not exceed ₹1.5 Lakh.
A113: j | B113: Infrastructure Bonds: These are also popularly called Infra Bonds. These are issued by infrastructure companies, and not the government. The amount that you invest in these bonds can also be included in Sec 80C deductions. NABARD rural bonds: There are two types of Bonds issued by NABARD (National Bank for Agriculture and Rural Development): NABARD Rural Bonds and Bhavishya Nirman Bonds (BNB). Out of these two, only NABARD Rural Bonds qualify under section 80C.
A114: k | B114: Senior Citizen Savings Scheme 2004 (SCSS): A recent addition to section 80C list, Senior Citizen Savings Scheme (SCSS) is the most lucrative scheme among all the small savings schemes but is meant only for senior citizens. Current rate of interest is 9% per annum payable quarterly. Please note that the interest is payable quarterly instead of compounded quarterly. Thus, unclaimed interest on these deposits won’t earn any further interest. Interest income is chargeable to tax.
A115: l | B115: Sukanya Samridhi Account : Contribution made in a financial year in Sukanya Samriddhi Account will also be eligible for income tax exemption under Section 80C up to a maximum of ₹ 1,50,000/-
A117: Back ↑ | B117: Allowed Deductions & Exemptions under New Income Tax Regime
B118: 1. Deduction under sub-section (2) of section 80CCD (employer contribution on account of employee in notified pension scheme) if added in Gross salary
B119: 2.Transport Allowance granted to Divyang Employee for commute between place of residence and duty
B121: The income tax Exemption on following incomes still available in the new regime
B122: · Death-cum-retirement benefit
B123: · Commutations of pensions
B124: · Leave encashment on retirement
B125: · Amount received on VRS up to Rs 5 lakh
B126: · Employee Provident Fund money
B127: · Money received as scholarship for education
B128: · Cash received as awards constituted in public interest
B129: · Short-term withdrawals and maturity amount from the National Pension Scheme

Sheet Sheet1 (hidden)
